fUSD/lending_fUSD_20240508
["ID","MTS","AMOUNT","RATE_DAILY","PERIOD"]
[326641999,1715188248221,-3866.756614,0.0002,2]
[326642001,1715188248232,-172.53,0.00020069,2]
[326642003,1715188248242,-163.24,0.00020074,2]
[326642005,1715188248251,-868.14,0.00020082,2]
[326642007,1715188248260,-868.14,0.00020082,2]
[326642009,1715188248270,-414.79,0.00020082,2]
[326642011,1715188248279,-868.14,0.00020082,2]
[326642013,1715188248288,-868.14,0.00020082,2]
[326642014,1715188248298,-868.14,0.00020082,2]
[326642015,1715188248308,-868.14,0.00020082,2]
[326642016,1715188248318,-868.14,0.00020082,2]
[326642017,1715188248327,-566.4,0.00020265,2]
[326642018,1715188248337,-566.4,0.00020271,2]
[326642019,1715188248346,-566.4,0.00020276,2]
[326642020,1715188248355,-566.4,0.00020281,2]
[326642021,1715188248364,-287.1886295,0.00020287,2]
[326642022,1715188248376,-279.2113705,0.00020287,2]
[326642023,1715188248385,-697.47,0.00020289,2]
[326642024,1715188248395,-566.4,0.00020292,2]
[326642025,1715188248404,-566.4,0.00020297,2]
[326642026,1715188248413,-566.4,0.00020303,2]
[326642027,1715188248422,-156.87,0.00020306,2]
[326642028,1715188248432,-566.4,0.00020308,2]
[326642029,1715188248441,-566.4,0.00020313,2]
[326642030,1715188248450,-566.4,0.00020319,2]
[326642031,1715188248459,-566.4,0.00020324,2]
[326642032,1715188248468,-566.4,0.00020329,2]
[326642033,1715188248477,-566.4,0.00020335,2]
[326642034,1715188248486,-566.4,0.0002034,2]
[326642035,1715188248496,-566.4,0.00020345,2]
[326642036,1715188248505,-566.4,0.00020351,2]
[326642037,1715188248515,-566.4,0.00020356,2]
[326642038,1715188248524,-566.4,0.00020361,2]
[326642039,1715188248534,-566.4,0.00020367,2]
[326642040,1715188248543,-163.22,0.00020379,2]
[326642041,1715188248552,-170.06,0.00020592,2]
[326642042,1715188248563,-217.6,0.00020868,2]
[326642043,1715188248572,-5180.54472656,0.00020879,7]
[326642044,1715188248582,-6000.0,0.00021,2]
[326642045,1715188248591,-716.73138077,0.00021,2]
[326642046,1715188248600,-1068.07,0.00021288,2]
[326642047,1715188248609,-150.0,0.00021425,2]
[326642048,1715188248619,-152.46,0.00021425,2]
[326642049,1715188248628,-163.18,0.00021425,2]
[326642050,1715188248746,-150.76,0.00021425,2]
[326642052,1715188248757,-150.0,0.00021425,2]
[326642054,1715188248767,-261.87,0.00021425,2]
[326642056,1715188248776,-933.89,0.00021425,2]
[326642058,1715188248786,-150.0,0.00021425,2]
[326642060,1715188248795,-583.26,0.00021425,2]
[326642062,1715188248807,-351.06,0.00021425,2]
[326642064,1715188248816,-523.13,0.00021425,2]
[326642066,1715188248825,-163.18,0.00021425,2]
[326642068,1715188248835,-150.0,0.00021425,2]
[326642069,1715188248844,-351.19,0.00021425,2]
[326642071,1715188248853,-300.68,0.00021425,2]
[326642074,1715188248863,-351.19,0.00021425,2]
[326642076,1715188248872,-500.0,0.00021434,2]
[326642078,1715188248882,-500.0,0.00021442,2]
[326642080,1715188248892,-500.0,0.00021451,2]
[326642082,1715188248901,-500.0,0.0002146,2]
[326642084,1715188248911,-500.0,0.00021469,2]
[326642086,1715188248920,-500.0,0.00021478,2]
[326642088,1715188248930,-235.87252216,0.00021486,2]
[326642090,1715188248942,-264.12747784,0.00021486,2]
[326642092,1715188248951,-235.87252216,0.00021495,2]
[326642094,1715188248962,-264.12747784,0.00021495,2]
[326642096,1715188248971,-500.0,0.00021504,2]
[326642098,1715188248981,-498.10460102,0.00021513,2]
[326642101,1715188248997,-1.89539898,0.00021513,2]
[326642102,1715188249006,-500.0,0.00021522,2]
[326642104,1715188249016,-500.0,0.0002153,2]
[326642106,1715188249025,-500.0,0.00021539,2]
[326642108,1715188249036,-500.0,0.00021548,2]
[326642110,1715188249045,-500.0,0.00021557,2]
[326642113,1715188249057,-500.0,0.00021566,2]
[326642115,1715188249067,-500.0,0.00021574,2]
[326642117,1715188249081,-500.0,0.00021583,2]
[326642118,1715188249091,-162.24,0.00021589,15]
[326642121,1715188249100,-500.0,0.00021592,2]
[326642123,1715188249111,-500.0,0.00021601,2]
[326642124,1715188249120,-500.0,0.0002161,2]
[326642126,1715188249129,-500.0,0.00021618,2]
[326642128,1715188249140,-500.0,0.00021627,2]
[326642130,1715188249150,-500.0,0.00021636,2]
[326642132,1715188249160,-500.0,0.00021645,2]
[326642134,1715188249170,-1561.26800831,0.00021655,2]
[326642136,1715188249180,-8127.0,0.00021674,2]
[326642139,1715188249190,-19537.15584642,0.000217,3]
[326642140,1715188249200,-155.0,0.000218,2]
[326642143,1715188249209,-810.2660858,0.000218,2]
[326642144,1715188249219,-200.0,0.00021804,2]
[326642147,1715188249229,-200.0,0.00021804,2]
[326642149,1715188249240,-1000.0,0.00021804,2]
[326642151,1715188249249,-500.0,0.00021804,2]
[326642153,1715188249258,-200.0,0.00021804,2]
[326642155,1715188249267,-165.46804776,0.00021875,2]
[326642157,1715188249277,-264.2178,0.00021878,2]
[326642159,1715188249286,-1000.0,0.00021878,2]
[326642161,1715188249297,-242.17974809,0.0002188,2]
[326642163,1715188249312,-1000.0,0.0002188,2]
[326642165,1715188249322,-439.82367473,0.0002188,2]
[326642167,1715188249331,-439.82367473,0.00021882,2]
[326642169,1715188249341,-439.82367473,0.00021884,2]
[326642171,1715188249350,-439.82367473,0.00021885,2]
[326642173,1715188249359,-439.82367473,0.00021887,2]
[326642175,1715188249369,-439.82367473,0.00021889,2]
[326642177,1715188249378,-439.82367473,0.00021891,2]
[326642179,1715188249387,-439.82367473,0.00021893,2]
[326642181,1715188249396,-439.82367473,0.00021895,2]
[326642183,1715188249406,-439.82367473,0.00021896,2]
[326642185,1715188249415,-439.82367473,0.00021898,2]
[326642187,1715188249424,-10000.0,0.000219,2]
[326642189,1715188249436,-1250.0,0.000219,2]
[326642191,1715188249446,-343.0,0.000219,2]
[326642193,1715188249455,-439.82367473,0.000219,2]
[326642195,1715188249464,-6762.66945982,0.00021915,2]
[326642197,1715188249473,-3499.67939162,0.00021916,2]
[326642199,1715188249483,-2215.11343661,0.00021917,2]
[326642201,1715188249492,-366.31861737,0.00021917,2]
[326642203,1715188249501,-173.31130324,0.00021917,2]
[326642205,1715188249510,-500.0,0.00021917,2]
[326642207,1715188249520,-500.0,0.00021917,2]
[326642209,1715188249529,-500.0,0.00021917,2]
[326642210,1715188249539,-500.0,0.00021917,2]
[326642212,1715188249548,-250.0,0.00021918,2]
[326642214,1715188249559,-250.0,0.00021918,2]
[326642216,1715188249569,-259.598109,0.00021918,2]
[326642217,1715188249578,-47237.53393,0.00021975,2]
[326642218,1715188249588,-2330.9560931,0.00021975,2]
[326642219,1715188249597,-155.0,0.00021977,2]
[326642220,1715188249607,-1295.87608614,0.00021978,2]
[326642221,1715188249618,-1783.83485581,0.00021978,2]
[326642222,1715188249628,-1000.0,0.00021978,2]
[326642223,1715188249637,-188.65310695,0.00021978,2]
[326642224,1715188249647,-459.86712019,0.00021978,2]
[326642225,1715188249656,-239.00488858,0.00021978,2]
[326642226,1715188249665,-377.0367828,0.00021978,2]
[326642227,1715188249675,-200.19191512,0.00021978,2]
[326642228,1715188249684,-3055.91272993,0.00021978,2]
[326642229,1715188249694,-2216.32339775,0.00021978,2]
[326642230,1715188249703,-1228.01655721,0.00021978,2]
[326642231,1715188249712,-200.40599956,0.00021978,2]
[326642232,1715188249721,-200.1780701,0.00021978,2]
[326642233,1715188249731,-236.81343216,0.00021978,2]
[326642234,1715188249740,-1211.30074394,0.00021978,2]
[326642235,1715188249750,-341.96790398,0.00021978,2]
[326642236,1715188249758,-2502.18780576,0.00021978,2]
[326642237,1715188249768,-2543.08381097,0.00021978,2]
[326642238,1715188249777,-7505.26883546,0.00021978,2]
[326642239,1715188249786,-155.0,0.00021978,2]
[326642240,1715188249795,-887.86064167,0.00021978,2]
[326642241,1715188249805,-268.42048949,0.00021978,2]
[326642242,1715188249814,-5000.0,0.00021978,2]
[326642243,1715188249824,-155.0,0.00021978,2]
[326642244,1715188249833,-317.67550535,0.00021978,2]
[326642245,1715188249843,-356.93407514,0.00021978,2]
[326642275,1715189441348,-250.27810035,0.00014792,2]
[326642276,1715189442514,-161.80076929,0.00014791,2]
[326642278,1715189442524,-749.72189965,0.00014792,2]
[326642281,1715189442534,-38.82764429,0.00014826,2]
[326642284,1715189442545,-131.23235571,0.00014826,2]
[326642289,1715189442555,-174.08,0.00014826,2]
[326642292,1715189442565,-171.61,0.00014826,2]
[326642296,1715189442574,-6449.82290462,0.00016399,2]
[326642300,1715189442583,-3347.0,0.000164,2]
[326642302,1715189442592,-2544.85572424,0.00016484,2]
[326642305,1715189442602,-174.08,0.0001668,2]
[326642307,1715189442612,-174.08,0.00018533,2]
[326642309,1715189442621,-155.6181104,0.00018543,2]
[326642311,1715189442632,-5000.0,0.00019,2]
[326642313,1715189442642,-162.36,0.00019178,2]
[326642315,1715189442652,-158.88,0.00019178,2]
[326642316,1715189442662,-172.53,0.0002006,2]
[326642317,1715189442673,-418.48,0.0002008,2]
[326642318,1715189442682,-868.14,0.00020082,2]
[326642319,1715189442692,-269.79666851,0.00020082,2]
[326642321,1715189448610,-204.34387367,0.00014791,2]
[326642322,1715189448619,-144.99333149,0.00020082,2]
[326642325,1715189448628,-414.79,0.00020082,2]
[326642328,1715189448638,-163.22,0.00020101,2]
[326642331,1715189448648,-154.87,0.00020256,2]
[326642335,1715189448658,-150.0,0.00020356,2]
[326642337,1715189448668,-300.0,0.00020356,2]
[326642339,1715189448680,-174.37,0.00020371,2]
[326642341,1715189448690,-174.08,0.00020386,2]
[326642343,1715189448699,-154.87,0.00020407,2]
[326642345,1715189448708,-154.87,0.00020558,2]
[326642347,1715189448717,-154.87,0.00020709,2]
[326642348,1715189448726,-154.87,0.00020859,2]
[326642349,1715189448741,-1295.87608614,0.00020879,2]
[326642351,1715189448750,-154.87,0.0002101,2]
[326642353,1715189448759,-414.79,0.00021041,2]
[326642354,1715189448772,-868.14,0.00021041,2]
[326642355,1715189448782,-868.14,0.00021041,2]
[326642356,1715189448792,-414.79,0.00021041,2]
[326642357,1715189448801,-868.14,0.00021041,2]
[326642358,1715189448812,-414.79,0.00021041,2]
[326642359,1715189448821,-868.14,0.00021041,2]
[326642360,1715189448830,-414.79,0.00021041,2]
[326642361,1715189448840,-414.79,0.00021041,2]
[326642362,1715189448849,-868.14,0.00021041,2]
[326642363,1715189448858,-884.22,0.00021041,2]
[326642364,1715189448868,-868.14,0.00021041,2]
[326642365,1715189448877,-868.14,0.00021041,2]
[326642366,1715189448887,-868.14,0.00021041,2]
[326642367,1715189448895,-414.79,0.00021041,2]
[326642368,1715189448905,-1046.34,0.00021041,2]
[326642369,1715189448915,-414.79,0.00021041,2]
[326642370,1715189448924,-1736.28,0.00021041,2]
[326642371,1715189448933,-414.79,0.00021041,2]
[326642372,1715189448943,-414.79,0.00021041,2]
[326642373,1715189448952,-2231.98446726,0.00021136,2]
[326642374,1715189448962,-154.87,0.00021161,2]
[326642375,1715189448971,-1044.93,0.00021178,2]
[326642376,1715189448979,-154.87,0.00021312,2]
[326642377,1715189448989,-500.0,0.00021381,2]
[326642378,1715189448999,-500.0,0.0002139,2]
[326642379,1715189449008,-500.0,0.00021398,2]
[326642380,1715189449018,-500.0,0.00021407,2]
[326642381,1715189449027,-500.0,0.00021416,2]
[326642382,1715189449035,-351.19,0.00021425,2]
[326642383,1715189449045,-500.0,0.00021425,2]
[326642384,1715189449054,-162.24,0.00021589,15]
[326642385,1715189449064,-810.2660858,0.000218,2]
[326642386,1715189449073,-500.0,0.00021803,2]
[326642387,1715189449083,-200.0,0.00021804,2]
[326642388,1715189449092,-500.0,0.00021804,2]
[326642389,1715189449101,-200.0,0.00021804,2]
[326642390,1715189449111,-1000.0,0.00021804,2]
[326642391,1715189449120,-500.0,0.00021804,2]
[326642392,1715189449129,-500.0,0.00021804,2]
[326642393,1715189449138,-500.0,0.00021804,2]
[326642394,1715189449148,-200.0,0.00021804,2]
[326642395,1715189449157,-500.0,0.00021874,2]
[326642396,1715189449166,-3100.0,0.00021875,2]
[326642397,1715189449175,-218.20914357,0.00021876,2]
[326642398,1715189449184,-165.46804776,0.00021876,2]
[326642399,1715189449193,-264.2178,0.00021878,2]
[326642400,1715189449203,-1000.0,0.00021878,2]
[326642401,1715189449212,-1000.0,0.00021878,2]
[326642402,1715189449221,-168.62526844,0.0002188,2]
[326642403,1715189449229,-242.17974809,0.0002188,2]
[326642404,1715189449238,-1695.20337847,0.0002188,2]
[326642405,1715189449250,-7500.0,0.0002188,2]
[326642406,1715189449260,-860.17013671,0.0002188,2]
[326642407,1715189449269,-1695.20337847,0.00021882,2]
[326642408,1715189449279,-500.0,0.00021882,2]
[326642409,1715189449288,-1695.20337847,0.00021884,2]
[326642410,1715189449297,-10000.0,0.00021885,2]
[326642411,1715189449307,-1695.20337847,0.00021885,2]
[326642412,1715189449317,-1695.20337847,0.00021887,2]
[326642413,1715189449326,-1695.20337847,0.00021889,2]
[326642414,1715189449336,-1695.20337847,0.00021891,2]
[326642415,1715189449346,-500.0,0.00021891,2]
[326642416,1715189449363,-1695.20337847,0.00021893,2]
[326642417,1715189449372,-1695.20337847,0.00021895,2]
[326642418,1715189449382,-1695.20337847,0.00021896,2]
[326642419,1715189449391,-1695.20337847,0.00021898,2]
[326642420,1715189449401,-343.0,0.000219,2]
[326642421,1715189449410,-6762.66945982,0.000219,2]
[326642422,1715189449420,-2500.0,0.000219,2]
[326642423,1715189449430,-500.0,0.000219,2]
[326642424,1715189449439,-500.0,0.000219,2]
[326642425,1715189449448,-165.46804776,0.000219,2]
[326642426,1715189449458,-1695.20337847,0.000219,2]
[326642427,1715189449467,-3499.67939162,0.00021911,2]
[326642428,1715189449476,-250.0,0.00021918,2]
[326642429,1715189449485,-250.0,0.00021918,2]
[326642430,1715189449495,-259.598109,0.00021918,2]
[326642431,1715189449503,-159.87,0.00021973,2]
[326642432,1715189449513,-4328.8909527,0.00021975,2]
[326642433,1715189449522,-3555.0074823,0.00021975,2]
[326642434,1715189449531,-452.050085,0.00021975,2]
[326642435,1715189449540,-1878.9060082,0.00021975,2]
[326642436,1715189449549,-1277.0339785,0.00021975,2]
[326642437,1715189449558,-8645.7283768,0.00021975,2]
[326642438,1715189449567,-4738.1375927,0.00021975,2]
[326642439,1715189449576,-29430.8731398,0.00021975,2]
[326642440,1715189449586,-341.96790398,0.00021976,2]
[326642441,1715189449595,-2502.18780576,0.00021976,2]
[326642442,1715189449604,-7505.26883546,0.00021976,2]
[326642443,1715189449613,-2408.71302799,0.00021976,2]
[326642476,1715189452916,-500.0,0.00021865,2]
[326642477,1715189452926,-69.54021321,0.00021976,2]
[326642478,1715189452986,-45.74020546,0.00021976,2]
[326642495,1715190457173,-401.52730436,0.00011727,2]
[326642496,1715190457882,-938.3250429,0.00011727,2]
[326642497,1715190457906,-208.27152668,0.00011728,2]
[326642499,1715190458545,-2821.28102606,0.00011728,2]
[326642506,1715190639779,-204.34387367,0.0001055,2]
[326642511,1715190639789,-161.80076929,0.00010551,2]
[326642515,1715190639799,-1102.0564236,0.00010551,2]
[326642519,1715190640625,-110.7005562,0.00010551,2]
[326642521,1715190640635,-320.95413161,0.00010552,2]
[326642523,1715190640645,-423.30130281,0.00010555,2]
[326642525,1715190640655,-4457.77814,0.00011566,2]
[326642527,1715190640665,-1787.06560171,0.00011726,2]
[326642529,1715190640675,-35060.65586652,0.00011728,2]
[326642531,1715190640687,-1376.28612306,0.00011728,2]
[326642533,1715190640698,-7509.83070935,0.00011728,2]
[326642534,1715190640708,-366.31861737,0.00011728,2]
[326642535,1715190640718,-173.31130324,0.00011728,2]
[326642536,1715190640728,-768.57790303,0.00012,2]
[326642538,1715190640738,-1295.87608614,0.00012348,2]
[326642540,1715190640748,-346.5041791,0.000129,2]
[326642542,1715190640758,-242.17974809,0.000129,2]
[326642545,1715190640778,-50243.87283691,0.00012998,2]
[326642547,1715190640791,-652.43271125,0.00012998,2]
[326642549,1715190640802,-1701.39738647,0.00012998,2]
[326642552,1715190640813,-522.69083373,0.00012998,2]
[326642554,1715190640823,-938.3250429,0.00012998,2]
[326642556,1715190640833,-1023.02542694,0.00012998,2]
[326642558,1715190640844,-2231.98446726,0.00012999,2]
[326642560,1715190640854,-91309.73962864,0.00013,2]
[326642562,1715190641229,-7272.65439133,0.00013,2]
[326642563,1715190641245,-16968.97910663,0.00013,2]
[326642564,1715190641258,-313.66,0.00013,2]
[326642577,1715190649386,-1504.772544,0.000129,2]
[326642578,1715190649404,-252.0603664,0.000129,2]
[326642613,1715190653846,-3408.90698777,0.000129,2]
[326642614,1715190653856,-320.95413161,0.00012999,2]
[326642615,1715190653865,-1208.43830019,0.00012999,2]
[326642616,1715190653875,-546507.64435469,0.00013,2]
[326642617,1715190653884,-87188.76189893,0.00013,2]
[326642618,1715190653894,-174.08,0.00013333,2]
[326642619,1715190653903,-648.65,0.00013399,2]
[326642620,1715190653913,-704.62,0.00013518,2]
[326642621,1715190653923,-20550.6,0.00013542,2]
[326642622,1715190653932,-250.0,0.00013657,2]
[326642623,1715190653942,-566.4,0.00014788,2]
[326642624,1715190653952,-566.4,0.00014792,2]
[326642625,1715190653961,-273.83686457,0.00014796,2]
[326642626,1715190653973,-292.56313543,0.00014796,2]
[326642627,1715190653982,-21.67909457,0.000148,2]
[326642652,1715190930777,-711.65311821,0.00010546,2]
[326642653,1715190933502,-8359.13953205,0.00010547,2]
[326642654,1715190935718,-304.96010731,0.00011728,2]
[326642655,1715190940746,-1375.35081514,0.00011728,2]
[326642656,1715190942494,-947.37496611,0.00011728,2]
[326642657,1715190942539,-301.52146118,0.00011728,2]
[326642658,1715190958032,-524.90314028,0.00010545,2]
[326642659,1715190959150,-3280.22762618,0.00010545,2]
[326642660,1715190959702,-194.86923354,0.00010545,2]
[326642661,1715190991118,423.30130281,9.491e-05,2]
[326642662,1715191007185,224.89621255,9.491e-05,2]
[326642663,1715191013862,193.07482509,9.49e-05,2]
[326642664,1715191044694,366.31861737,9.49e-05,2]
[326642665,1715191045957,-7509.83070935,0.00010545,2]
[326642666,1715191047366,-267.9305041,0.00011727,2]
[326642667,1715191047979,-185.67730746,0.00011728,2]
[326642668,1715191051801,36.56147909,7.118e-05,2]
[326642669,1715191052525,2508.29424515,7.118e-05,2]
[326642670,1715191056139,2544.85572424,7.118e-05,2]
[326642671,1715191067724,1328.54922824,9.49e-05,2]
[326642672,1715191068350,368.44958701,9.49e-05,2]
[326642673,1715191093742,917.15678976,7.118e-05,2]
[326642751,1715191575604,-1212.7569798,0.00012896,2]
[326642752,1715191576221,-208.27152668,0.00012896,2]
[326642753,1715191576248,-535.00984553,0.00012896,2]
[326642754,1715191576274,-204.34387367,0.00012897,2]
[326642755,1715191576973,-155.0,0.00012898,2]
[326642756,1715191577002,-320.95413161,0.00012899,2]
[326642757,1715191577029,-1000.0,0.00012899,2]
[326642758,1715191577054,-3085.93911486,0.00012899,2]
[326642759,1715191577081,-2325.5398219,0.00012899,2]
[326642760,1715191577109,-952.18470595,0.000129,2]
[326642764,1715191847330,-161.80076929,0.00012897,2]
[326642769,1715191847340,-340.25825471,0.00012898,2]
[326642777,1715191847352,-452.27500001,0.00012898,2]
[326642781,1715191847364,-1545.77914995,0.00012898,2]
[326642785,1715191847376,-17132.02506845,0.00012898,2]
[326642789,1715191847385,-7406.9548261,0.000129,2]
[326642793,1715191847394,-179.9588821,0.000129,2]
[326642799,1715191847404,-183.09,0.00012989,2]
[326642803,1715191847413,-170.45,0.00013151,2]
[326642808,1715191847422,-1000.75258289,0.00013698,2]
[326642811,1715191847431,-1561.86172371,0.00014605,2]
[326642816,1715191847440,-3500.94133622,0.00014729,2]
[326642820,1715191847449,-1735.9973791,0.00014793,2]
[326642824,1715191847458,-226.37,0.00014793,2]
[326642827,1715191847467,-3196.6680341,0.00014793,2]
[326642829,1715191847476,-544.72090543,0.000148,2]
[326642831,1715191847486,-155.0,0.000148,2]
[326642832,1715191847495,-3000.0,0.000148,2]
[326642834,1715191847505,-566.4,0.00014804,2]
[326642836,1715191847514,-566.4,0.00014807,2]
[326642837,1715191847524,-566.4,0.00014811,2]
[326642839,1715191847533,-566.4,0.00014815,2]
[326642841,1715191847543,-566.4,0.00014819,2]
[326642842,1715191847552,-566.4,0.00014823,2]
[326642844,1715191847561,-168.65,0.00014826,2]
[326642846,1715191847571,-566.4,0.00014827,2]
[326642847,1715191847580,-566.4,0.00014831,2]
[326642849,1715191847589,-566.4,0.00014835,2]
[326642850,1715191847598,-566.4,0.00014839,2]
[326642852,1715191847607,-566.4,0.00014843,2]
[326642853,1715191847616,-566.4,0.00014846,2]
[326642855,1715191847625,-566.4,0.0001485,2]
[326642857,1715191847634,-566.4,0.00014854,2]
[326642859,1715191847649,-566.4,0.00014858,2]
[326642860,1715191847659,-566.4,0.00014862,2]
[326642862,1715191847670,-483.03109509,0.00015,2]
[326642864,1715191847680,-416.866718,0.00015068,2]
[326642865,1715191847690,-1000.0,0.0001583,2]
[326642866,1715191847699,-167.41,0.00015831,2]
[326642867,1715191847708,-416.866718,0.0001589,2]
[326642868,1715191847718,-164.65,0.00016027,2]
[326642869,1715191847727,-156.29,0.00016034,2]
[326642870,1715191847737,-156.29,0.00016044,2]
[326642871,1715191847747,-164.69,0.0001605,2]
[326642872,1715191847756,-156.29,0.00016054,2]
[326642873,1715191847766,-2421.67,0.00016061,2]
[326642874,1715191847776,-156.29,0.00016064,2]
[326642875,1715191847785,-156.29,0.00016074,2]
[326642876,1715191847794,-156.29,0.00016085,2]
[326642877,1715191847804,-172.94,0.00016085,2]
[326642878,1715191847813,-156.29,0.00016095,2]
[326642879,1715191847822,-156.29,0.00016105,2]
[326642880,1715191847832,-156.29,0.00016115,2]
[326642881,1715191847843,-1000.0,0.00016139,2]
[326642882,1715191847852,-171.43,0.0001615,2]
[326642883,1715191847862,-314.41,0.00016194,2]
[326642884,1715191847871,-250.0,0.00016243,2]
[326642885,1715191847880,-200.0,0.00016311,2]
[326642886,1715191847890,-258.31,0.00016329,2]
[326642887,1715191847899,-4376.0,0.000164,2]
[326642888,1715191847908,-847.0,0.000164,2]
[326642889,1715191847918,-599.28,0.00016438,2]
[326642890,1715191847928,-154.87,0.00016494,2]
[326642891,1715191847937,-1225.84618609,0.000165,2]
[326642892,1715191847947,-154.87,0.00016602,2]
[326642893,1715191847956,-154.87,0.00016709,2]
[326642894,1715191847965,-416.866718,0.00016712,2]
[326642895,1715191847976,-153.72003342,0.00016769,2]
[326642896,1715191847985,-154.87,0.00016816,2]
[326642897,1715191847995,-154.87,0.00016924,2]
[326642898,1715191848006,-176.24045042,0.00016925,2]
[326642899,1715191848017,-176.24045042,0.00017017,2]
[326642900,1715191848027,-154.87,0.00017031,2]
[326642901,1715191848036,-154.87,0.00017139,2]
[326642902,1715191848045,-154.87,0.00017246,2]
[326642903,1715191848057,-154.87,0.00017354,2]
[326642904,1715191848067,-416.866718,0.00017534,2]
[326642905,1715191848076,-171.29,0.00017863,2]
[326642906,1715191848088,-1050.0,0.00018,3]
[326642907,1715191848098,-156.39606318,0.00018005,2]
[326642908,1715191848107,-1000.0,0.00018157,2]
[326642909,1715191848116,-152.99699577,0.00018305,2]
[326642910,1715191848126,-416.866718,0.00018356,2]
[326642911,1715191848135,-258.31,0.0001837,2]
[326642912,1715191848145,-156.39606318,0.0001853,2]
[326642913,1715191848155,-171.43,0.0001889,2]
[326642914,1715191848165,-250.5802228,0.00018898,2]
[326642915,1715191848174,-275.45217304,0.00018898,2]
[326642916,1715191848183,-33838.19541985,0.00019,2]
[326642917,1715191848193,-5000.0,0.00019,2]
[326642918,1715191848202,-177.82556159,0.0001901,2]
[326642919,1715191848224,-288.66,0.00019178,2]
[326642920,1715191848324,-150.59,0.00019178,2]
[326642921,1715191848334,-160.63,0.00019178,2]
[326642922,1715191848344,-416.866718,0.00019178,2]
[326642923,1715191848353,-179.6678895,0.00019203,2]
[326642924,1715191848363,-155.30860764,0.0001924,2]
[326642925,1715191848372,-176.24045042,0.0001926,2]
[326642926,1715191848382,-183.09,0.00019483,2]
[326642927,1715191848392,-177.74903876,0.00019557,2]
[326642928,1715191848402,-157.19964716,0.00019696,2]
[326642929,1715191848411,-156.39606318,0.00019698,2]
[326642930,1715191848422,-170.45,0.00019726,2]
[326642931,1715191848432,-3000.0,0.000198,2]
[326642932,1715191848442,-177.74903876,0.00019862,2]
[326642933,1715191848451,-552.10538466,0.0002,2]
[326642934,1715191848461,-1100.0,0.0002,3]
[326642935,1715191848470,-416.866718,0.0002,2]
[326642936,1715191848480,-1000.0,0.00020174,2]
[326642937,1715191848489,-419.86,0.00020396,2]
[326642938,1715191848499,-258.31,0.00020411,2]
[326642939,1715191848509,-177.74903876,0.00020473,2]
[326642940,1715191848518,-163.92978336,0.00020741,2]
[326642941,1715191848528,-251.74141407,0.00020788,2]
[326642942,1715191848537,-416.866718,0.00020822,2]
[326642943,1715191848547,-1052.45288053,0.00020898,2]
[326642944,1715191848556,-500.12455506,0.00020898,2]
[326642945,1715191848566,-1369.426,0.00020898,2]
[326642946,1715191848575,-264.2178,0.00020899,2]
[326642947,1715191848585,-1695.20337847,0.000209,2]
[326642948,1715191848595,-2846.8771,0.000209,2]
[326642949,1715191848605,-1000.0,0.000209,2]
[326642950,1715191848614,-1000.0,0.000209,2]
[326642951,1715191848624,-300.0,0.000209,7]
[326642952,1715191848634,-1695.20337847,0.00020991,2]
[326642953,1715191848643,-534.58535291,0.00020996,2]
[326642954,1715191848653,-203.12197274,0.00020996,2]
[326642955,1715191848663,-1214.6351373,0.00020996,2]
[326642956,1715191848674,-270.37569364,0.00020996,2]
[326642957,1715191848683,-171.41969033,0.00020996,2]
[326642958,1715191848693,-159.15289068,0.00020996,2]
[326642959,1715191848703,-1767.33942278,0.00020996,2]
[326642960,1715191848713,-2481.19300595,0.00020996,2]